bitfinex/quotes_ETHUSD_20230110
["timestamp","ask_amount","ask_price","bid_price","bid_amount"]
[1673362592786,15.00962,1332.5,1332.1,1.92579085]
[1673362593070,1.354,1332.3,1332.1,1.9286066]
[1673362594139,16.36601,1332.3,1332.1,1.92579085]
[1673362594327,1.42,1332.3,1332.1,1.92579085]
[1673362594528,1.354,1332.3,1332.1,1.92579085]
[1673362594740,16.36594,1332.3,1332.1,1.92579085]
[1673362594983,23.93791,1332.3,1332.1,1.92579085]
[1673362595283,1.42,1332.3,1332.1,5.91603058]
[1673362595500,1.36926561,1332.4,1332.1,13.48897058]
[1673362595688,1.36926561,1332.4,1332.1,28.50285058]
[1673362595899,13.373,1332.5,1332.2,3.80361279]
[1673362596123,0.066,1332.5,1332.3,11.30347064]
[1673362596337,1.42,1332.7,1332.3,20.75685692]
[1673362596548,61.32318,1332.8,1332.4,2.0]
[1673362596805,0.066,1332.8,1332.6,7.50412]
[1673362596969,2.63584205,1333.0,1332.6,15.07424]
[1673362597177,0.13584205,1333.0,1332.7,4.02766064]
[1673362597388,0.13584205,1333.0,1332.8,3.79766064]
[1673362597665,0.13584205,1333.0,1332.9,3.79766064]
[1673362597830,0.13584205,1333.0,1332.9,11.30009064]
[1673362598046,0.13584205,1333.0,1332.9,3.86366064]
[1673362598350,0.13584205,1333.0,1332.9,3.79766064]
[1673362598569,0.13584205,1333.0,1332.9,6.4349267]
[1673362598778,0.13584205,1333.0,1332.9,21.5057867]
[1673362599121,0.13584205,1333.0,1332.9,6.5009267]
[1673362599278,7.63771205,1333.0,1332.9,0.064]
[1673362599490,0.20184205,1333.0,1332.7,0.296]
[1673362599752,8.98171205,1333.0,1332.8,3.79766064]
[1673362599907,1.54584205,1333.0,1332.7,3.86366064]
[1673362600117,1.47984205,1333.0,1332.7,3.79766064]
[1673362600590,1.47984205,1333.0,1332.8,3.79766064]
[1673362600959,1.47984205,1333.0,1332.8,11.30063064]
[1673362601164,1.47984205,1333.0,1332.8,11.36663064]
[1673362601380,1.47984205,1333.0,1332.8,3.86366064]
[1673362601589,1.47984205,1333.0,1332.8,3.79766064]
[1673362603016,1.47984205,1333.0,1332.8,11.30064064]
[1673362603164,1.47984205,1333.0,1332.8,6.53965322]
[1673362603165,0.13584205,1333.0,1332.8,6.53965322]
[1673362603374,0.13584205,1333.0,1332.8,3.86366064]
[1673362603584,0.13584205,1333.0,1332.8,3.79766064]
[1673362604588,16.48458205,1333.0,1332.7,0.45297519]
[1673362604736,16.55058205,1333.0,1332.7,3.79766064]
[1673362605207,1.54684205,1333.0,1332.7,3.79766064]
[1673362605531,0.13584205,1333.0,1332.7,26.30771064]
[1673362605852,1e-08,1333.0,1332.8,3.79766064]
[1673362605997,1.34,1333.1,1333.0,0.00199999]
[1673362606213,9.47452,1333.2,1333.0,4.81566063]
[1673362606214,0.066,1333.2,1333.0,4.81566063]
[1673362606419,3.8069357,1333.5,1333.1,4.02766064]
[1673362606675,1.342,1333.4,1333.0,1.08399999]
[1673362606892,1.9046,1333.4,1333.0,5.94726863]
[1673362607110,8.84165,1333.4,1333.0,6.01326863]
[1673362607276,1.408,1333.4,1333.0,6.01326863]
[1673362607483,1.342,1333.4,1333.0,6.01326863]
[1673362607692,1.342,1333.4,1333.0,21.01697863]
[1673362607944,1.354,1333.2,1333.0,0.06799999]
[1673362608265,1.354,1333.2,1333.0,0.00199999]
[1673362608789,3.854,1333.1,1333.0,0.00199999]
[1673362609096,11.35531,1333.1,1333.0,0.00199999]
[1673362609308,8.92131,1333.1,1333.0,0.00199999]
[1673362609526,16.42262,1333.1,1333.0,0.00199999]
[1673362609838,23.92393,1333.1,1333.0,0.00199999]
[1673362610661,8.92131,1333.1,1333.0,0.00199999]
[1673362610882,23.92393,1333.1,1333.0,0.00199999]
[1673362613414,23.93919561,1333.1,1333.0,0.00199999]
[1673362614426,32.09085625,1333.1,1333.0,0.00199999]
[1673362614666,32.65365625,1333.1,1333.0,0.00199999]
[1673362614883,16.42262,1333.1,1333.0,0.00199999]
[1673362615197,0.066,1333.1,1333.0,0.00199999]
[1673362615392,8.85477,1333.2,1333.0,0.00199999]
[1673362615564,8.92077,1333.2,1333.0,0.00199999]
[1673362615986,23.85693,1333.1,1333.0,0.00199999]
[1673362616282,23.92293,1333.1,1333.0,0.00199999]
[1673362617192,27.72059064,1333.1,1333.0,0.00199999]
[1673362617411,33.98939064,1333.1,1333.0,0.00199999]
[1673362617627,47.88139064,1333.1,1333.0,0.00199999]
[1673362617771,7.49994001,1333.0,1332.4,6.0403]
[1673362618145,15.00938,1332.5,1332.4,0.066]
[1673362618332,23.92007,1332.5,1332.2,1.75116213]
[1673362618552,1.354,1332.4,1332.1,3.75398254]
[1673362618873,1.354,1332.4,1332.2,1.86255083]
[1673362618874,8.85947,1332.4,1332.2,1.86255083]
[1673362619046,8.92547,1332.4,1332.2,1.86255083]
[1673362619482,16.43094,1332.4,1332.2,1.86255083]
[1673362619796,23.93641,1332.4,1332.1,8.80047892]
[1673362620038,23.93641,1332.4,1332.2,1.86254939]
[1673362620436,0.066,1332.4,1332.2,4.97616968]
[1673362620608,0.066,1332.6,1332.3,6.29766064]
[1673362620815,7.5042,1332.6,1332.4,3.79766064]
[1673362621070,7.5702,1332.6,1332.4,3.79766064]
[1673362621455,15.07424,1332.6,1332.3,0.066]
[1673362621667,23.93236,1332.6,1332.3,3.79766064]
[1673362622025,28.28302064,1332.6,1332.2,0.066]
[1673362622183,0.57826561,1332.5,1332.1,2.00272041]
[1673362622395,2.5,1332.3,1332.1,2.00272041]
[1673362622721,15.01276,1332.2,1332.1,2.00272041]
[1673362622915,15.01276,1332.2,1332.1,3.86543611]
[1673362622916,22.58514,1332.2,1332.1,3.86543611]
[1673362623126,23.93914,1332.2,1332.1,1.86278472]
[1673362623372,23.93914,1332.2,1332.0,0.07692956]
[1673362623595,2.5,1332.1,1332.0,0.07692956]
[1673362623764,17.51388,1332.1,1332.0,0.07692956]
[1673362623979,15.07988,1332.1,1332.0,0.07692956]
[1673362624386,22.58682,1332.1,1332.0,0.07692956]
[1673362625485,22.58682,1332.1,1332.0,1.93976683]
[1673362625705,0.066,1332.1,1332.0,0.07692956]
[1673362625868,11.20312161,1332.2,1332.0,0.07692956]
[1673362626222,26.21650161,1332.2,1332.0,0.07692956]
[1673362626596,2.5,1332.1,1332.0,0.07692956]
[1673362626960,23.03358196,1332.1,1332.0,0.07692956]
[1673362627190,25.65469699,1332.1,1332.0,0.07692956]
[1673362628478,26.09569699,1332.1,1332.0,0.07692956]
[1673362629635,25.58293503,1332.1,1332.0,0.07692956]
[1673362632284,1.861,1332.1,1332.0,0.07692956]
[1673362632498,11.2786,1332.3,1332.0,0.07692956]
[1673362632946,8.3396,1332.3,1332.1,0.00425662]
[1673362633267,8.3396,1332.3,1332.1,11.30882726]
[1673362633268,0.066,1332.3,1332.1,11.30882726]
[1673362633424,0.066,1332.4,1332.2,3.79766064]
[1673362633637,0.066,1332.6,1332.2,12.69136637]
[1673362633913,7.5037,1332.7,1332.3,3.79766064]
[1673362634098,0.066,1332.7,1332.3,3.79766064]
[1673362634263,7.50374,1332.7,1332.3,3.79766064]
[1673362634474,7.56974,1332.7,1332.3,3.79766064]
[1673362634731,7.56974,1332.7,1332.3,4.32277228]
[1673362635191,7.58500561,1332.7,1332.3,4.32277228]
[1673362635315,15.08874561,1332.7,1332.3,4.32277228]
[1673362635529,2.5,1332.6,1332.3,4.32277228]
[1673362635743,10.00418,1332.6,1332.3,4.32277228]
[1673362635965,10.07018,1332.6,1332.3,0.52511164]
[1673362636155,15.0105,1332.4,1332.2,1.38745573]
[1673362636366,15.0765,1332.4,1332.2,3.79766064]
[1673362636630,15.0765,1332.4,1332.1,0.066]
[1673362636803,15.0765,1332.4,1332.0,3.07692956]
[1673362636997,7.57125,1332.4,1332.0,14.3820202]
[1673362637211,7.57125,1332.4,1332.0,14.4480202]
[1673362637416,7.57125,1332.4,1332.0,17.39436822]
[1673362637632,22.58175,1332.4,1332.0,9.88693822]
[1673362637873,7.57125,1332.4,1332.0,17.39441822]
[1673362638492,0.066,1332.4,1332.0,32.40941822]
[1673362638685,7.50525,1332.4,1332.0,32.40941822]
[1673362638887,7.57125,1332.4,1332.0,32.40941822]
[1673362639094,0.066,1332.4,1332.0,32.40941822]
[1673362639370,15.076,1332.5,1332.0,32.40941822]
[1673362639553,15.076,1332.5,1332.1,6.29766064]
[1673362639554,0.066,1332.5,1332.1,6.29766064]
[1673362639729,22.51413,1332.5,1332.1,7.35460246]
[1673362640097,22.51413,1332.5,1332.1,3.86366064]
[1673362640098,22.59539561,1332.5,1332.1,3.86366064]
[1673362640267,22.59539561,1332.5,1332.0,3.14292956]
[1673362640634,22.59539561,1332.5,1332.0,0.07692956]
[1673362641172,22.51771,1332.3,1332.0,0.07692956]
[1673362641326,22.58371,1332.3,1332.0,0.07692956]
[1673362642618,15.07779,1332.3,1332.0,0.07692956]
[1673362642991,7.57187,1332.3,1332.0,0.07692956]
[1673362643202,0.066,1332.3,1332.0,26.3970702]
[1673362643453,8.06837,1332.4,1332.0,7.88767722]
[1673362643624,7.50601,1332.3,1332.0,7.88767722]
[1673362643833,15.07802,1332.3,1332.0,3.9405902]
[1673362644043,15.07802,1332.3,1332.0,3.8745902]
[1673362644710,0.066,1332.3,1332.0,11.3819702]
[1673362644879,15.07697,1332.4,1332.0,11.4479702]
[1673362645510,0.066,1332.4,1332.0,26.4629702]
[1673362645874,30.10162561,1332.5,1332.0,26.4629702]
[1673362646050,15.01071,1332.4,1332.0,7.63766322]
[1673362646267,22.58217,1332.4,1332.0,7.63766322]
[1673362646788,7.57125,1332.4,1332.0,22.65253322]
[1673362647205,0.066,1332.4,1332.1,18.81099064]
[1673362647423,22.01839,1332.5,1332.4,0.002]
[1673362647975,29.52338,1332.5,1332.4,0.002]
[1673362648141,15.07598,1332.5,1332.4,0.002]
[1673362648596,15.02598,1332.5,1332.4,0.002]
[1673362648825,15.02798,1332.5,1332.4,0.002]
[1673362649241,15.02798,1332.5,1332.4,1.018]
[1673362649402,7.57069,1332.5,1332.4,0.002]
[1673362650355,9.07069,1332.5,1332.4,0.002]
[1673362650824,16.57538,1332.5,1332.4,0.002]
[1673362651192,25.86507,1332.5,1332.4,0.002]
[1673362651631,25.88033561,1332.5,1332.4,0.002]
[1673362651847,25.88033561,1332.5,1332.0,10.47472956]
[1673362652183,25.57888,1332.4,1332.0,0.14292956]
[1673362652344,1.787,1332.3,1332.0,0.07692956]
[1673362652549,16.79907,1332.3,1332.0,0.07692956]
[1673362652901,9.35885,1332.3,1332.0,0.07692956]
[1673362653232,1.853,1332.3,1332.0,0.07692956]
[1673362653384,16.80996561,1332.4,1332.0,22.59940956]
[1673362653599,16.80996561,1332.4,1332.0,29.48041716]
[1673362654179,16.80996561,1332.4,1332.0,29.48994855]
[1673362654342,15.01496561,1332.4,1332.0,29.48994855]
[1673362655004,3.0,1332.3,1332.0,0.15246095]
[1673362655211,26.87990064,1332.2,1332.0,0.07692956]
[1673362655496,25.02334,1332.0,1331.6,0.0891277]
[1673362655701,0.6292,1332.0,1331.6,0.0891277]
[1673362655959,8.07075,1332.0,1331.6,0.0891277]
[1673362656168,8.07075,1332.0,1331.7,2.5]
[1673362656169,0.6292,1332.0,1331.7,2.5]
[1673362656384,0.5632,1332.0,1331.7,2.87111898]
[1673362656781,0.5632,1332.0,1331.7,3.99318111]
[1673362656964,0.5632,1332.0,1331.8,1.86298987]
[1673362657175,10.5707,1332.0,1331.7,1.55918111]
[1673362657415,15.0813,1332.0,1331.6,1.21118983]
[1673362657591,15.0813,1332.0,1331.7,1.86311153]
[1673362658248,22.5891,1332.0,1331.7,1.86311153]
[1673362659429,15.0813,1332.0,1331.7,2.98517366]
[1673362659593,22.5888,1332.0,1331.7,2.98517366]
[1673362659808,22.5888,1332.0,1331.7,3.76751312]
[1673362660007,22.5888,1332.0,1331.7,1.90440159]
[1673362660440,22.5888,1332.0,1331.7,0.78233946]
[1673362661592,22.5888,1332.0,1331.7,4.5800001]
[1673362661760,22.5888,1332.0,1331.6,4.27718983]
[1673362661761,24.3768,1332.0,1331.6,4.27718983]
[1673362661950,24.3768,1332.0,1331.6,4.21118983]
[1673362662143,24.3768,1332.0,1331.6,1.21118983]
[1673362662353,24.3768,1332.0,1331.6,0.0891277]
[1673362662896,22.52589,1331.8,1331.6,0.0891277]
[1673362663122,22.59189,1331.8,1331.6,0.0891277]
[1673362663293,31.88552,1331.8,1331.6,0.0891277]
[1673362663506,24.32857,1331.7,1331.6,0.0891277]
[1673362663803,24.39457,1331.7,1331.6,0.0891277]
[1673362664452,24.95787,1331.7,1331.6,0.0891277]
[1673362669088,24.39457,1331.7,1331.6,0.0891277]
[1673362669541,16.88538,1331.7,1331.6,0.0891277]
[1673362669768,24.39457,1331.7,1331.6,0.0891277]
[1673362670157,16.88538,1331.7,1331.6,0.0891277]
[1673362670370,9.37619,1331.7,1331.6,0.0891277]
[1673362670561,22.59357,1331.7,1331.6,0.0891277]
[1673362671027,15.08438,1331.7,1331.6,0.0891277]
[1673362671949,22.59357,1331.7,1331.6,0.0891277]
[1673362672676,0.066,1331.7,1331.6,0.0891277]
[1673362672908,24.19340561,1331.8,1331.6,0.0891277]
[1673362673123,14.8773,1331.8,1331.6,0.0891277]
[1673362673460,14.314,1331.8,1331.6,0.0891277]
[1673362673764,0.066,1331.8,1331.6,0.0891277]
[1673362673938,7.50881,1331.8,1331.6,0.0891277]
[1673362674150,7.57481,1331.8,1331.6,0.0891277]
[1673362674391,15.08362,1331.8,1331.6,0.0891277]
[1673362675288,0.066,1331.8,1331.6,3.88678834]
[1673362675533,0.066,1331.9,1331.6,13.29592194]
[1673362675818,36.9489,1332.0,1331.6,13.36192194]
[1673362676027,14.4256,1332.0,1331.6,20.87168194]
[1673362676354,29.44073,1332.0,1331.6,13.36192194]
[1673362676626,36.94836,1332.0,1331.6,5.86193618]
[1673362677495,14.4256,1332.0,1331.7,3.79766064]
[1673362677705,0.066,1332.0,1331.8,3.79766064]
[1673362677971,23.14948,1332.2,1331.8,3.79766064]
[1673362678179,8.13578,1332.2,1331.8,11.30629064]
[1673362678334,8.13578,1332.2,1331.8,13.56901907]
[1673362678544,23.14936,1332.2,1331.8,6.06038907]
[1673362680478,0.066,1332.2,1331.9,3.79766064]
[1673362680650,13.8414,1332.3,1332.0,7.5075]
[1673362681010,13.8414,1332.3,1332.0,7.5735]
[1673362681226,0.066,1332.3,1332.0,10.21214106]
[1673362681433,8.13469,1332.4,1332.0,10.21214106]
[1673362681746,23.14607,1332.4,1332.0,2.70464106]
[1673362681962,8.13469,1332.4,1332.0,11.30497064]
[1673362682134,0.6291,1332.4,1332.0,26.31997064]
[1673362682342,0.5631,1332.4,1332.0,26.38597064]
[1673362682556,0.187038,1332.5,1332.1,5.58366064]
[1673362682753,0.121038,1332.5,1332.2,19.37328064]
[1673362682953,0.121038,1332.5,1332.3,6.29766064]
[1673362683216,0.121038,1332.5,1332.4,3.79766064]
[1673362683379,0.121038,1332.5,1332.4,11.30291064]
[1673362683584,0.121038,1332.7,1332.4,3.86366064]
[1673362683819,0.121038,1332.7,1332.4,5.1845537]
[1673362684114,0.121038,1332.7,1332.4,20.2610537]
[1673362684354,0.121038,1332.7,1332.4,27.7663037]
[1673362684695,0.121038,1332.7,1332.4,12.7558037]
[1673362685097,0.121038,1332.7,1332.4,20.2610537]
[1673362685286,0.121038,1332.7,1332.4,12.7558037]
[1673362685758,0.121038,1332.7,1332.4,27.7663037]
[1673362685946,0.121038,1332.7,1332.4,20.2610537]
[1673362686111,0.121038,1332.7,1332.4,12.7558037]
[1673362686321,0.121038,1332.7,1332.4,5.2505537]
[1673362686568,7.624608,1332.7,1332.4,5.2505537]
[1673362686801,7.690608,1332.7,1332.4,5.2505537]
[1673362686970,7.690608,1332.7,1332.4,12.7557937]
[1673362687157,0.187038,1332.7,1332.4,12.7557937]
[1673362687487,0.121038,1332.7,1332.4,12.7557937]
[1673362687696,22.631948,1332.7,1332.4,5.2505537]
[1673362687917,15.194158,1332.7,1332.4,3.86366064]
[1673362688145,0.187038,1332.7,1332.4,11.30280064]
[1673362688367,7.624638,1332.7,1332.4,11.36880064]
[1673362688678,7.690638,1332.7,1332.4,11.36880064]
[1673362688898,7.690638,1332.7,1332.4,3.86366064]
[1673362688899,15.194238,1332.7,1332.4,3.86366064]
[1673362689085,22.697838,1332.7,1332.4,1.94378106]
[1673362689417,24.484838,1332.7,1332.2,6.2145]
[1673362689632,24.484838,1332.7,1332.2,0.066]
[1673362689633,1.795,1332.5,1332.2,0.066]
[1673362689849,15.00955,1332.5,1332.0,15.08043]
[1673362690003,7.57069,1332.5,1332.0,23.75606423]
[1673362690376,7.57069,1332.5,1332.0,31.26356423]
[1673362690536,7.57069,1332.5,1332.0,23.19286423]
[1673362690756,0.066,1332.5,1332.0,30.70036423]
[1673362690943,16.54356561,1332.6,1332.1,3.79766064]
[1673362691148,14.7273,1332.6,1332.3,7.5057]
[1673362691423,0.066,1332.6,1332.3,0.066]
[1673362691593,15.00826,1332.6,1332.2,11.36971064]
[1673362691811,7.57012,1332.6,1332.2,13.86971064]
[1673362692466,0.066,1332.6,1332.2,28.88247064]
[1673362692627,0.749938,1332.7,1332.3,3.80718987]
[1673362692837,0.121038,1332.7,1332.4,3.79766064]
[1673362693051,0.121038,1332.7,1332.5,18.80704064]
[1673362693258,0.7837129,1333.0,1332.6,3.79766064]
[1673362693510,0.2209129,1333.0,1332.7,3.79766064]
[1673362693718,0.2209129,1333.0,1332.6,0.066]
[1673362693888,7.7227829,1333.0,1332.7,2.5]
[1673362694099,0.2869129,1333.0,1332.7,0.62976606]
[1673362694312,0.2209129,1333.0,1332.7,19.4344767]
[1673362694562,0.2209129,1333.0,1332.7,4.4934267]
[1673362694772,2.7209129,1333.0,1332.7,0.62976606]
[1673362695094,10.2227829,1333.0,1332.5,15.07451]
[1673362695264,7.7887829,1333.0,1332.6,3.79766064]
[1673362695676,7.7887829,1333.0,1332.6,11.30177064]
[1673362695880,0.2869129,1333.0,1332.6,18.87189064]
[1673362696090,7.7228729,1333.0,1332.6,11.36777064]
[1673362696302,0.2869129,1333.0,1332.6,21.5095117]
[1673362696624,0.2209129,1333.0,1332.6,14.0053917]
[1673362696829,15.2248429,1333.0,1332.6,6.5012817]
[1673362697073,22.7929029,1333.0,1332.6,3.86366064]
[1673362697260,22.7929029,1333.0,1332.6,3.79766064]
[1673362697471,7.7887829,1333.0,1332.6,11.30178064]
[1673362697773,0.2869129,1333.0,1332.6,26.37602064]
[1673362698013,0.2209129,1333.0,1332.7,3.79766064]
[1673362698242,0.2209129,1333.0,1332.8,18.80366064]
[1673362698416,0.2209129,1333.0,1332.8,18.86966064]
[1673362698624,0.2209129,1333.0,1332.9,3.79766064]
[1673362699561,0.2209129,1333.0,1332.9,11.30009064]
[1673362699774,0.2209129,1333.0,1332.9,21.7556817]
[1673362700248,0.2209129,1333.0,1332.9,14.4832517]
[1673362700560,0.2209129,1333.0,1332.9,29.8209117]
[1673362700942,0.2209129,1333.0,1332.9,29.2581117]
[1673362701345,0.2209129,1333.0,1332.9,32.2581117]
[1673362702307,0.2209129,1333.0,1332.9,9.7508217]
[1673362702505,0.2209129,1333.0,1332.9,6.86366064]
[1673362702712,0.2209129,1333.0,1332.9,3.066]
[1673362702938,0.2209129,1333.0,1332.8,0.6289]
[1673362703151,7.7227829,1333.0,1332.8,3.0]
[1673362703378,7.7227829,1333.0,1332.7,0.6289]
[1673362703379,0.2869129,1333.0,1332.7,11.13206]
[1673362703552,0.2209129,1333.0,1332.8,18.80366064]
[1673362703762,0.2209129,1333.0,1332.9,3.79766064]
[1673362703984,0.2209129,1333.0,1332.9,11.30009064]
[1673362704196,0.2209129,1333.0,1332.9,26.37095064]
[1673362704526,0.2209129,1333.0,1332.9,18.86852064]
[1673362704749,1e-08,1333.0,1332.9,21.5056727]
[1673362704910,1e-08,1333.0,1332.9,29.0081027]
[1673362705125,1e-08,1333.0,1332.9,21.5056727]
[1673362705334,1e-08,1333.0,1332.9,6.5008127]
[1673362705546,1e-08,1333.0,1332.9,0.066]
[1673362705756,1e-08,1333.0,1332.9,7.50243]
[1673362706017,1e-08,1333.0,1332.9,0.066]
[1673362706211,1e-08,1333.0,1332.8,0.066]
[1673362706390,1e-08,1333.0,1332.8,11.30029064]
[1673362706601,1e-08,1333.0,1332.8,20.20236633]
[1673362706811,1e-08,1333.0,1332.8,12.69940633]
[1673362707237,1e-08,1333.0,1332.8,20.20240633]
[1673362707448,1e-08,1333.0,1332.9,3.79766064]
[1673362707675,1e-08,1333.0,1332.9,26.30495064]
[1673362707862,1e-08,1333.0,1332.9,22.63919027]
[1673362708296,1e-08,1333.0,1332.9,15.13676027]
[1673362708513,1e-08,1333.0,1332.9,22.63919027]
[1673362708961,1e-08,1333.0,1332.9,30.14162027]
[1673362709487,1e-08,1333.0,1332.9,15.13676027]
[1673362709655,1e-08,1333.0,1332.9,22.63919027]
[1673362709853,1e-08,1333.0,1332.9,7.63433027]
[1673362710066,1e-08,1333.0,1332.9,3.86366064]
[1673362710271,1e-08,1333.0,1332.9,3.79766064]
[1673362710727,1e-08,1333.0,1332.9,11.30009064]
[1673362710941,1e-08,1333.0,1332.9,18.86852064]
[1673362711325,1e-08,1333.0,1332.9,26.37095064]
[1673362711645,1e-08,1333.0,1332.9,32.89161027]
[1673362711863,1e-08,1333.0,1332.9,33.64272009]
[1673362712075,1e-08,1333.0,1332.9,34.20552009]
[1673362712300,1e-08,1333.0,1332.9,36.00652009]
[1673362712644,1e-08,1333.0,1332.9,28.50409009]
[1673362712805,1e-08,1333.0,1332.9,31.48298027]
[1673362713016,1e-08,1333.0,1332.9,27.98298027]
[1673362713601,1e-08,1333.0,1332.9,20.48055027]
[1673362713759,7.50187001,1333.0,1332.9,11.17712027]
[1673362713969,0.06600001,1333.0,1332.9,7.42646064]
[1673362714174,1e-08,1333.0,1332.9,6.86366064]
[1673362715373,1e-08,1333.0,1332.9,29.37095064]
[1673362715543,0.12264761,1333.1,1333.0,1.01799999]
[1673362715754,0.12264761,1333.1,1333.0,7.86935042]
[1673362716008,0.12264761,1333.1,1333.0,33.67096042]
[1673362716837,0.12264761,1333.1,1333.0,34.19207024]
[1673362718117,0.12264761,1333.1,1333.0,38.84537532]
[1673362718328,0.12264761,1333.1,1333.0,26.69020024]
[1673362718538,0.12264761,1333.1,1333.0,28.55152486]
[1673362719223,0.12264761,1333.1,1333.0,26.69020024]
[1673362719437,0.12264761,1333.1,1333.0,34.19207024]
[1673362719894,0.12264761,1333.1,1333.0,36.65438595]
[1673362720271,0.12264761,1333.1,1333.0,40.12647915]
[1673362720478,0.12264761,1333.1,1333.0,42.91852411]
[1673362720896,0.12264761,1333.1,1333.0,43.43963393]
[1673362722004,0.12264761,1333.1,1333.0,41.75654073]
[1673362722221,0.12264761,1333.1,1333.0,40.6344786]
[1673362722387,0.12264761,1333.1,1333.0,33.1326086]
[1673362722600,0.12264761,1333.1,1333.0,25.4007386]
[1673362722813,0.12264761,1333.1,1333.0,9.75781876]
[1673362723070,0.12264761,1333.1,1333.0,7.89645536]
[1673362724612,0.12264761,1333.1,1333.0,15.39832536]
[1673362724800,0.08126561,1333.3,1333.0,17.25978179]
[1673362725016,0.12264761,1333.4,1333.1,3.79766064]
[1673362725340,0.12264761,1333.4,1333.2,22.50225]
[1673362725708,0.12264761,1333.4,1333.2,26.36591064]
[1673362726389,0.12264761,1333.4,1333.3,3.79766064]
[1673362727035,7.62226761,1333.4,1333.3,3.79766064]
[1673362727247,7.68826761,1333.4,1333.3,3.79766064]
[1673362727839,22.70277322,1333.4,1333.2,0.066]
[1673362728227,7.70359322,1333.4,1333.0,11.02261982]
[1673362728422,15.20327322,1333.4,1333.1,3.79766064]
[1673362728662,15.20321322,1333.4,1333.1,3.79766064]
[1673362729234,15.20321322,1333.4,1333.0,0.066]
[1673362729582,15.00161,1333.2,1332.9,0.066]
[1673362729744,15.00161,1333.2,1332.9,6.79766064]
[1673362729745,15.06761,1333.2,1332.9,6.79766064]
[1673362729960,27.86347,1333.2,1332.9,0.066]
[1673362730155,1.801,1333.1,1332.7,1.18806213]
[1673362730371,15.00396,1333.0,1332.7,4.91972277]
[1673362730731,16.44912971,1333.0,1332.6,2.87115533]
[1673362730902,25.75210971,1333.0,1332.5,2.87115533]
[1673362731118,29.25210971,1333.0,1332.6,1.86200874]
[1673362731366,2.5,1332.9,1332.6,1.86200874]
[1673362731685,15.006,1332.8,1332.6,1.86200874]
[1673362731853,7.569,1332.8,1332.6,1.86200874]
[1673362732918,22.575,1332.8,1332.6,1.86200874]
[1673362733256,21.45777781,1332.8,1332.6,1.86200874]
[1673362733449,3.837,1332.7,1332.5,0.066]
[1673362733666,22.51236,1332.6,1332.3,1.18806213]
[1673362733876,22.57836,1332.6,1332.4,1.86234605]
[1673362734046,22.57836,1332.6,1332.3,1.12206213]
[1673362734047,15.07424,1332.6,1332.3,1.12206213]
[1673362734257,15.08950561,1332.6,1332.2,1.20092648]
[1673362734538,15.08950561,1332.6,1332.3,1.86235594]
[1673362734674,15.08950561,1332.6,1332.2,8.11340811]
[1673362734884,15.08950561,1332.6,1332.2,6.99134598]
[1673362735141,1.35,1332.5,1332.2,0.14486435]
[1673362735468,23.87301561,1332.4,1332.2,0.07886435]
[1673362735642,23.93901561,1332.4,1332.2,0.07886435]
[1673362735832,22.59701561,1332.4,1332.2,0.07886435]
[1673362736305,15.09176561,1332.4,1332.2,0.07886435]
[1673362736463,7.58651561,1332.4,1332.2,0.07886435]
[1673362737088,22.59701561,1332.4,1332.2,0.07886435]
[1673362737259,2.5,1332.3,1332.2,0.07886435]
[1673362737414,22.51743,1332.3,1332.2,0.07886435]
[1673362737620,22.58343,1332.3,1332.2,0.07886435]
[1673362738466,23.93343,1332.3,1332.2,0.07886435]
[1673362738674,23.93343,1332.3,1332.2,6.435e-05]
[1673362738926,27.36385132,1332.3,1332.2,6.435e-05]
[1673362739771,26.01685132,1332.3,1332.2,6.435e-05]
[1673362740681,30.36685132,1332.3,1332.2,6.435e-05]
[1673362740879,37.66451196,1332.3,1332.2,6.435e-05]
[1673362741089,38.67351196,1332.3,1332.2,6.435e-05]
[1673362741301,43.74151196,1332.3,1332.2,6.435e-05]
[1673362741532,43.74151196,1332.3,1331.9,0.08917478]
[1673362741533,7.009,1332.2,1331.9,0.08917478]
[1673362741883,2.5,1331.9,1331.6,0.0891277]
[1673362742085,1.343,1331.7,1331.6,0.0891277]
[1673362742407,23.87057,1331.7,1331.6,0.0891277]
[1673362742616,23.93657,1331.7,1331.6,0.0891277]
[1673362742771,25.28657,1331.7,1331.6,0.0891277]
[1673362742981,29.80689132,1331.7,1331.6,7.7e-06]
[1673362743406,4.409,1331.7,1331.6,7.7e-06]
[1673362743615,0.5633,1331.7,1331.6,3.79766834]
[1673362743826,16.0792,1331.8,1331.6,3.79766834]
[1673362743827,0.066,1331.8,1331.6,3.79766834]
[1673362744039,3.5633,1331.9,1331.6,3.79766834]
[1673362744284,0.5633,1331.9,1331.7,2.5]
[1673362744453,4.9062,1332.0,1331.7,2.5]
[1673362744870,0.5632,1332.0,1331.7,13.80685064]
[1673362745082,15.7988,1332.1,1332.0,1.42412604]
[1673362745408,8.13614,1332.1,1332.0,1.42412604]
[1673362745861,7.57294,1332.1,1332.0,1.42412604]
[1673362746074,16.42988,1332.1,1332.0,1.42412604]
[1673362746502,23.95208561,1332.1,1332.0,1.42412604]
[1673362747305,1.416,1332.1,1332.0,1.42412604]
[1673362747655,1.35,1332.1,1332.0,1.42412604]
[1673362748605,8.85694,1332.1,1332.0,1.42412604]
[1673362748776,8.92294,1332.1,1332.0,1.42412604]
[1673362748989,0.066,1332.1,1332.0,1.56653864]
[1673362749202,23.94339,1332.2,1332.0,1.56653864]
[1673362749414,16.43646,1332.2,1332.0,1.56653864]
[1673362749761,7.57267,1332.2,1332.0,1.42412604]
[1673362750655,7.57264,1332.2,1332.0,1.42412604]
[1673362751863,0.066,1332.2,1332.0,1.42412604]
[1673362752034,7.70354,1332.3,1332.0,1.42412604]
[1673362752242,7.70354,1332.3,1332.0,2.57392164]
[1673362752592,24.06516,1332.3,1332.0,1.42412604]
[1673362752804,31.5714,1332.3,1332.0,1.42412604]
[1673362753027,16.55892,1332.3,1332.0,1.42412604]
[1673362753175,15.20892,1332.3,1332.0,1.42412604]
[1673362753385,22.71473,1332.3,1332.0,1.42412604]
[1673362754240,15.20892,1332.3,1332.0,1.42412604]
[1673362754438,22.71473,1332.3,1332.0,1.42412604]
[1673362754815,15.20892,1332.3,1332.0,1.42412604]
[1673362755188,0.1973,1332.3,1332.0,23.94644604]
[1673362755402,3.1313,1332.3,1332.0,24.01244604]
[1673362755597,3.1313,1332.3,1332.0,27.16447564]